{"text_format":"1","workbook":"xlsx","n_sheets":2,"sheets":["Наряд 1","Наряд 2"],"not_rendered":{"charts":0,"images":0,"macros":1,"external_links":2,"defined_names":14,"comments":0,"pivot_tables":0},"unopened":[],"bounds":{"document_bytes":16777216,"sheet_cells":100000,"rows_first":2000,"rows_last":500,"rows_between":2000,"halvings":0,"cell_chars":16384,"cell_head_chars":4096},"cells_cut":0,"cells_raw":0,"read":"whole","date_system":"1900"}

{"sheet":"Наряд 1","index":0,"n_rows":98,"n_cols":75,"rows_kept":98,"cut":false,"hidden":false,"merged":[[97,0,97,6],[97,7,97,16],[97,17,97,32],[97,47,97,53],[97,54,97,63],[97,64,97,78],[94,60,94,78],[95,0,95,18],[95,19,95,32],[95,47,95,65],[95,66,95,78],[96,0,96,18],[96,19,96,32],[96,47,96,65],[96,66,96,78],[92,0,92,10],[92,11,92,78],[93,0,93,12],[93,13,93,32],[93,33,97,46],[93,47,93,59],[93,60,93,78],[94,0,94,12],[94,13,94,32],[94,47,94,59],[91,50,91,52],[91,53,91,56],[91,57,91,62],[91,63,91,66],[91,67,91,70],[91,71,91,78],[90,53,90,56],[90,57,90,62],[90,63,90,66],[90,67,90,70],[90,71,90,78],[91,0,91,2],[91,3,91,38],[91,39,91,43],[91,44,91,46],[91,47,91,49],[90,0,90,2],[90,3,90,38],[90,39,90,43],[90,44,90,46],[90,47,90,49],[90,50,90,52],[89,50,89,52],[89,53,89,56],[89,57,89,62],[89,63,89,66],[89,67,89,70],[89,71,89,78],[88,53,88,56],[88,57,88,62],[88,63,88,66],[88,67,88,70],[88,71,88,78],[89,0,89,2],[89,3,89,38],[89,39,89,43],[89,44,89,46],[89,47,89,49],[88,0,88,2],[88,3,88,38],[88,39,88,43],[88,44,88,46],[88,47,88,49],[88,50,88,52],[87,50,87,52],[87,53,87,56],[87,57,87,62],[87,63,87,66],[87,67,87,70],[87,71,87,78],[86,53,86,56],[86,57,86,62],[86,63,86,66],[86,67,86,70],[86,71,86,78],[87,0,87,2],[87,3,87,38],[87,39,87,43],[87,44,87,46],[87,47,87,49],[86,0,86,2],[86,3,86,38],[86,39,86,43],[86,44,86,46],[86,47,86,49],[86,50,86,52],[85,50,85,52],[85,53,85,56],[85,57,85,62],[85,63,85,66],[85,67,85,70],[85,71,85,78],[84,53,84,56],[84,57,84,62],[84,63,84,66],[84,67,84,70],[84,71,84,78],[85,0,85,2],[85,3,85,38],[85,39,85,43],[85,44,85,46],[85,47,85,49],[84,0,84,2],[84,3,84,38],[84,39,84,43],[84,44,84,46],[84,47,84,49],[84,50,84,52],[83,50,83,52],[83,53,83,56],[83,57,83,62],[83,63,83,66],[83,67,83,70],[83,71,83,78],[82,53,82,56],[82,57,82,62],[82,63,82,66],[82,67,82,70],[82,71,82,78],[83,0,83,2],[83,3,83,38],[83,39,83,43],[83,44,83,46],[83,47,83,49],[82,0,82,2],[82,3,82,38],[82,39,82,43],[82,44,82,46],[82,47,82,49],[82,50,82,52],[81,50,81,52],[81,53,81,56],[81,57,81,62],[81,63,81,66],[81,67,81,70],[81,71,81,78],[75,71,80,78],[77,63,80,66],[77,67,80,70],[78,50,80,52],[78,53,80,56],[81,0,81,2],[81,3,81,38],[81,39,81,43],[81,44,81,46],[81,47,81,49],[73,0,80,2],[73,3,80,38],[73,39,80,43],[73,44,74,62],[73,63,74,78],[75,44,80,46],[75,47,80,49],[75,50,77,56],[75,57,80,62],[75,63,76,70],[65,74,68,78],[68,24,72,38],[68,39,72,52],[69,0,72,23],[69,53,72,58],[69,59,71,78],[72,60,72,78],[62,68,64,73],[62,74,64,78],[65,0,68,8],[65,9,68,23],[65,24,67,28],[65,29,67,52],[65,53,68,56],[65,57,68,62],[65,63,68,67],[65,68,68,73],[58,63,61,67],[58,68,61,73],[58,74,61,78],[61,0,64,8],[61,9,64,23],[62,24,64,28],[62,29,64,52],[62,53,64,56],[62,57,64,62],[62,63,64,67],[55,57,57,62],[55,63,57,67],[56,68,57,73],[56,74,57,78],[57,0,60,3],[57,4,60,23],[58,24,61,28],[58,29,61,52],[58,53,61,56],[58,57,61,62],[55,24,57,28],[55,29,57,29],[55,30,57,32],[55,33,57,45],[55,46,57,52],[55,53,57,56],[51,0,52,23],[51,24,54,39],[51,40,54,47],[51,48,54,52],[51,53,52,78],[53,0,54,3],[53,4,56,23],[53,53,54,67],[53,68,55,78],[55,0,56,3],[50,0,50,6],[50,7,50,16],[50,17,50,32],[50,47,50,53],[50,54,50,63],[50,64,50,78],[47,60,47,78],[48,0,48,18],[48,19,48,32],[48,47,48,65],[48,66,48,78],[49,0,49,18],[49,19,49,32],[49,47,49,65],[49,66,49,78],[45,0,45,10],[45,11,45,78],[46,0,46,12],[46,13,46,32],[46,33,50,46],[46,47,46,59],[46,60,46,78],[47,0,47,12],[47,13,47,32],[47,47,47,59],[44,50,44,52],[44,53,44,56],[44,57,44,62],[44,63,44,66],[44,67,44,70],[44,71,44,78],[43,53,43,56],[43,57,43,62],[43,63,43,66],[43,67,43,70],[43,71,43,78],[44,0,44,2],[44,3,44,38],[44,39,44,43],[44,44,44,46],[44,47,44,49],[43,0,43,2],[43,3,43,38],[43,39,43,43],[43,44,43,46],[43,47,43,49],[43,50,43,52],[42,50,42,52],[42,53,42,56],[42,57,42,62],[42,63,42,66],[42,67,42,70],[42,71,42,78],[41,53,41,56],[41,57,41,62],[41,63,41,66],[41,67,41,70],[41,71,41,78],[42,0,42,2],[42,3,42,38],[42,39,42,43],[42,44,42,46],[42,47,42,49],[41,0,41,2],[41,3,41,38],[41,39,41,43],[41,44,41,46],[41,47,41,49],[41,50,41,52],[40,50,40,52],[40,53,40,56],[40,57,40,62],[40,63,40,66],[40,67,40,70],[40,71,40,78],[39,53,39,56],[39,57,39,62],[39,63,39,66],[39,67,39,70],[39,71,39,78],[40,0,40,2],[40,3,40,38],[40,39,40,43],[40,44,40,46],[40,47,40,49],[39,0,39,2],[39,3,39,38],[39,39,39,43],[39,44,39,46],[39,47,39,49],[39,50,39,52],[38,50,38,52],[38,53,38,56],[38,57,38,62],[38,63,38,66],[38,67,38,70],[38,71,38,78],[37,53,37,56],[37,57,37,62],[37,63,37,66],[37,67,37,70],[37,71,37,78],[38,0,38,2],[38,3,38,38],[38,39,38,43],[38,44,38,46],[38,47,38,49],[37,0,37,2],[37,3,37,38],[37,39,37,43],[37,44,37,46],[37,47,37,49],[37,50,37,52],[36,50,36,52],[36,53,36,56],[36,57,36,62],[36,63,36,66],[36,67,36,70],[36,71,36,78],[35,53,35,56],[35,57,35,62],[35,63,35,66],[35,67,35,70],[35,71,35,78],[36,0,36,2],[36,3,36,38],[36,39,36,43],[36,44,36,46],[36,47,36,49],[35,0,35,2],[35,3,35,38],[35,39,35,43],[35,44,35,46],[35,47,35,49],[35,50,35,52],[34,50,34,52],[34,53,34,56],[34,57,34,62],[34,63,34,66],[34,67,34,70],[34,71,34,78],[28,71,33,78],[30,63,33,66],[30,67,33,70],[31,50,33,52],[31,53,33,56],[34,0,34,2],[34,3,34,38],[34,39,34,43],[34,44,34,46],[34,47,34,49],[26,0,33,2],[26,3,33,38],[26,39,33,43],[26,44,27,62],[26,63,27,78],[28,44,33,46],[28,47,33,49],[28,50,30,56],[28,57,33,62],[28,63,29,70],[18,68,21,73],[18,74,21,78],[21,24,25,38],[21,39,25,52],[22,0,25,23],[22,53,25,58],[22,59,24,78],[25,60,25,78],[15,63,17,67],[15,68,17,73],[15,74,17,78],[18,0,21,8],[18,9,21,23],[18,24,20,28],[18,29,20,52],[18,53,21,56],[18,57,21,62],[18,63,21,67],[11,57,14,62],[11,63,14,67],[11,68,14,73],[11,74,14,78],[14,0,17,8],[14,9,17,23],[15,24,17,28],[15,29,17,52],[15,53,17,56],[15,57,17,62],[8,53,10,56],[8,57,10,62],[8,63,10,67],[9,68,10,73],[9,74,10,78],[10,0,13,3],[10,4,13,23],[11,24,14,28],[11,29,14,52],[11,53,14,56],[8,0,9,3],[8,24,10,28],[8,29,10,29],[8,30,10,32],[8,33,10,45],[8,46,10,52],[1,19,2,22],[4,0,5,23],[4,24,7,39],[4,40,7,47],[4,48,7,52],[4,53,5,78],[6,0,7,3],[6,4,9,23],[6,53,7,67],[6,68,8,78]]}
[]
[null,null,null,null,null,null,null,null,null,null,null,null,null,null,null,null,null,null,null,1]
[]
[]
["УП\"Бумажная фабрика\"Гознака",null,null,null,null,null,null,null,null,null,null,null,null,null,null,null,null,null,null,null,null,null,null,null,"Н А Р Я Д №",null,null,null,null,null,null,null,null,null,null,null,null,null,null,null,1]
[]
[null,null,null,null,{"$f":"[1]Начальная!$C$4","v":"Бумажный цех"},null,null,null,null,null,null,null,null,null,null,null,null,null,null,null,null,null,null,null,null,null,null,null,null,null,null,null,null,null,null,null,null,null,null,null,null,null,null,null,null,null,null,null,null,null,null,null,null,"Сроки выполнения",null,null,null,null,null,null,null,null,null,null,null,null,null,null,"Время в ч.ч. на всю работу"]
[]
["Участок",null,null,null,null,null,null,null,null,null,null,null,null,null,null,null,null,null,null,null,null,null,null,null,"от",null,null,null,null,null,3,null,null,{"$f":"[1]Начальная!$C$12","v":"Май, 2015 г."},null,null,null,null,null,null,null,null,null,null,null,null,null,null,null,null,null,null,null,null,null,null,null,"план",null,null,null,null,null,"фактически"]
[null,null,null,null,null,null,null,null,null,null,null,null,null,null,null,null,null,null,null,null,null,null,null,null,null,null,null,null,null,null,null,null,null,null,null,null,null,null,null,null,null,null,null,null,null,null,null,null,null,null,null,null,null,null,null,null,null,null,null,null,null,null,null,null,null,null,null,null,"по норме",null,null,null,null,null,"фактически"]
["Объект"]
[null,null,null,null,null,null,null,null,null,null,null,null,null,null,null,null,null,null,null,null,null,null,null,null,"Профессия",null,null,null,null,"рабочие",null,null,null,null,null,null,null,null,null,null,null,null,null,null,null,null,null,null,null,null,null,null,null,"Начало"]
[]
[]
["Конструкт. элемент"]
[null,null,null,null,null,null,null,null,null,null,null,null,null,null,null,null,null,null,null,null,null,null,null,null,"Бригадир",null,null,null,null,{"$f":"'[1]Наряд стр.2'!$B$7","v":"Чемеза О.П."},null,null,null,null,null,null,null,null,null,null,null,null,null,null,null,null,null,null,null,null,null,null,null,"Конец"]
[]
[]
["Шифр бухгалтерии",null,null,null,null,null,null,null,null,null,null,null,null,null,null,null,null,null,null,null,null,null,null,null,"Мастер",null,null,null,null,{"$f":"[1]Начальная!$C$8","v":"Хомич Н.Н."},null,null,null,null,null,null,null,null,null,null,null,null,null,null,null,null,null,null,null,null,null,null,null,"Сумма   к оплате"]
[]
[]
[null,null,null,null,null,null,null,null,null,null,null,null,null,null,null,null,null,null,null,null,null,null,null,null,"по сдельно-прогрессивной      системе",null,null,null,null,null,null,null,null,null,null,null,null,null,null,"оплачивается                                               не оплачивается"]
[null,null,null,null,null,null,null,null,null,null,null,null,null,null,null,null,null,null,null,null,null,null,null,null,null,null,null,null,null,null,null,null,null,null,null,null,null,null,null,null,null,null,null,null,null,null,null,null,null,null,null,null,null,"Утверждаю"]
[]
[]
[]
["Шифры и норм",null,null,"Описание работ и условий производства их",null,null,null,null,null,null,null,null,null,null,null,null,null,null,null,null,null,null,null,null,null,null,null,null,null,null,null,null,null,null,null,null,null,null,null,"Еденица измерения",null,null,null,null,"З а д а н и е",null,null,null,null,null,null,null,null,null,null,null,null,null,null,null,null,null,null,"И с п о л е н и е "]
[]
[null,null,null,null,null,null,null,null,null,null,null,null,null,null,null,null,null,null,null,null,null,null,null,null,null,null,null,null,null,null,null,null,null,null,null,null,null,null,null,null,null,null,null,null,"количество работ",null,null,"разряды звеньев",null,null,"норма времени в ч.ч.",null,null,null,null,null,null,"расценка",null,null,null,null,null,"количество",null,null,null,null,null,null,null,"сумма за выполненную работу"]
[]
[null,null,null,null,null,null,null,null,null,null,null,null,null,null,null,null,null,null,null,null,null,null,null,null,null,null,null,null,null,null,null,null,null,null,null,null,null,null,null,null,null,null,null,null,null,null,null,null,null,null,null,null,null,null,null,null,null,null,null,null,null,null,null,"един. работы",null,null,null,"ч.час.по норме"]
[null,null,null,null,null,null,null,null,null,null,null,null,null,null,null,null,null,null,null,null,null,null,null,null,null,null,null,null,null,null,null,null,null,null,null,null,null,null,null,null,null,null,null,null,null,null,null,null,null,null,"на един.",null,null,"на всю работу"]
[]
[]
[]
[]
[]
[]
[]
[]
[]
[]
[]
[]
[null,null,null,"Итого по наряду…….."]
["Сумма прописью"]
["Наряд выдал: нач.цеха",null,null,null,null,null,null,null,null,null,null,null,null,{"$f":"[1]Начальная!$C$6","v":"Романов В.В."},null,null,null,null,null,null,null,null,null,null,null,null,null,null,null,null,null,null,null,"Инженер по                        нормированию                               труда и з.пл",null,null,null,null,null,null,null,null,null,null,null,null,null,"Наряд выдал: нач.цеха",null,null,null,null,null,null,null,null,null,null,null,null,{"$f":"$N$47","v":"Романов В.В."}]
["мастер",null,null,null,null,null,null,null,null,null,null,null,null,{"$f":"[1]Начальная!$C$8","v":"Хомич Н.Н."},null,null,null,null,null,null,null,null,null,null,null,null,null,null,null,null,null,null,null,null,null,null,null,null,null,null,null,null,null,null,null,null,null,"мастер",null,null,null,null,null,null,null,null,null,null,null,null,{"$f":"$N$48","v":"Хомич Н.Н."}]
["Наряд к исполнению принял: бригадир",null,null,null,null,null,null,null,null,null,null,null,null,null,null,null,null,null,null,null,null,null,null,null,null,null,null,null,null,null,null,null,null,null,null,null,null,null,null,null,null,null,null,null,null,null,null,"Наряд к исполнению принял: бригадир"]
["рабочий",null,null,null,null,null,null,null,null,null,null,null,null,null,null,null,null,null,null,null,null,null,null,null,null,null,null,null,null,null,null,null,null,null,null,null,null,null,null,null,null,null,null,null,null,null,null,"рабочий"]
[{"$f":"$AE$9","v":3},null,null,null,null,null,null,{"$f":"$AH$9","v":"Май, 2015 г."},null,null,null,null,null,null,null,null,null,null,null,null,null,null,null,null,null,null,null,null,null,null,null,null,null,null,null,null,null,null,null,null,null,null,null,null,null,null,null,{"$f":"$AE$9","v":3},null,null,null,null,null,null,{"$f":"$AH$9","v":"Май, 2015 г."}]
["УП\"Бумажная фабрика\"Гознака",null,null,null,null,null,null,null,null,null,null,null,null,null,null,null,null,null,null,null,null,null,null,null,"Н А Р Я Д №",null,null,null,null,null,null,null,null,null,null,null,null,null,null,null,2]
[]
[null,null,null,null,{"$f":"[1]Начальная!$C$4","v":"Бумажный цех"},null,null,null,null,null,null,null,null,null,null,null,null,null,null,null,null,null,null,null,null,null,null,null,null,null,null,null,null,null,null,null,null,null,null,null,null,null,null,null,null,null,null,null,null,null,null,null,null,"Сроки выполнения",null,null,null,null,null,null,null,null,null,null,null,null,null,null,"Время в ч.ч. на всю работу"]
[]
["Участок",null,null,null,null,null,null,null,null,null,null,null,null,null,null,null,null,null,null,null,null,null,null,null,"от",null,null,null,null,null,null,null,null,{"$f":"[1]Начальная!$C$12","v":"Май, 2015 г."},null,null,null,null,null,null,null,null,null,null,null,null,null,null,null,null,null,null,null,null,null,null,null,"план",null,null,null,null,null,"фактически"]
[null,null,null,null,null,null,null,null,null,null,null,null,null,null,null,null,null,null,null,null,null,null,null,null,null,null,null,null,null,null,null,null,null,null,null,null,null,null,null,null,null,null,null,null,null,null,null,null,null,null,null,null,null,null,null,null,null,null,null,null,null,null,null,null,null,null,null,null,"по норме",null,null,null,null,null,"фактически"]
["Объект"]
[null,null,null,null,null,null,null,null,null,null,null,null,null,null,null,null,null,null,null,null,null,null,null,null,"Профессия",null,null,null,null,"рабочие",null,null,null,null,null,null,null,null,null,null,null,null,null,null,null,null,null,null,null,null,null,null,null,"Начало"]
[]
[]
["Конструкт. элемент"]
[null,null,null,null,null,null,null,null,null,null,null,null,null,null,null,null,null,null,null,null,null,null,null,null,"Бригадир",null,null,null,null,{"$f":"'[1]Наряд стр.2'!$B$7","v":"Чемеза О.П."},null,null,null,null,null,null,null,null,null,null,null,null,null,null,null,null,null,null,null,null,null,null,null,"Конец"]
[]
[]
["Шифр бухгалтерии",null,null,null,null,null,null,null,null,null,null,null,null,null,null,null,null,null,null,null,null,null,null,null,"Мастер",null,null,null,null,{"$f":"[1]Начальная!$C$8","v":"Хомич Н.Н."},null,null,null,null,null,null,null,null,null,null,null,null,null,null,null,null,null,null,null,null,null,null,null,"Сумма   к оплате"]
[]
[]
[null,null,null,null,null,null,null,null,null,null,null,null,null,null,null,null,null,null,null,null,null,null,null,null,"по сдельно-прогрессивной      системе",null,null,null,null,null,null,null,null,null,null,null,null,null,null,"оплачивается                                               не оплачивается"]
[null,null,null,null,null,null,null,null,null,null,null,null,null,null,null,null,null,null,null,null,null,null,null,null,null,null,null,null,null,null,null,null,null,null,null,null,null,null,null,null,null,null,null,null,null,null,null,null,null,null,null,null,null,"Утверждаю"]
[]
[]
[]
["Шифры и норм",null,null,"Описание работ и условий производства их",null,null,null,null,null,null,null,null,null,null,null,null,null,null,null,null,null,null,null,null,null,null,null,null,null,null,null,null,null,null,null,null,null,null,null,"Еденица измерения",null,null,null,null,"З а д а н и е",null,null,null,null,null,null,null,null,null,null,null,null,null,null,null,null,null,null,"И с п о л е н и е "]
[]
[null,null,null,null,null,null,null,null,null,null,null,null,null,null,null,null,null,null,null,null,null,null,null,null,null,null,null,null,null,null,null,null,null,null,null,null,null,null,null,null,null,null,null,null,"количество работ",null,null,"разряды звеньев",null,null,"норма времени в ч.ч.",null,null,null,null,null,null,"расценка",null,null,null,null,null,"количество",null,null,null,null,null,null,null,"сумма за выполненную работу"]
[]
[null,null,null,null,null,null,null,null,null,null,null,null,null,null,null,null,null,null,null,null,null,null,null,null,null,null,null,null,null,null,null,null,null,null,null,null,null,null,null,null,null,null,null,null,null,null,null,null,null,null,null,null,null,null,null,null,null,null,null,null,null,null,null,"един. работы",null,null,null,"ч.час.по норме"]
[null,null,null,null,null,null,null,null,null,null,null,null,null,null,null,null,null,null,null,null,null,null,null,null,null,null,null,null,null,null,null,null,null,null,null,null,null,null,null,null,null,null,null,null,null,null,null,null,null,null,"на един.",null,null,"на всю работу"]
[]
[]
[]
[]
[]
[]
[]
[]
[]
[]
[]
[]
[null,null,null,"Итого по наряду…….."]
["Сумма прописью"]
["Наряд выдал: нач.цеха",null,null,null,null,null,null,null,null,null,null,null,null,{"$f":"[1]Начальная!$C$6","v":"Романов В.В."},null,null,null,null,null,null,null,null,null,null,null,null,null,null,null,null,null,null,null,"Инженер по                        нормированию                               труда и з.пл",null,null,null,null,null,null,null,null,null,null,null,null,null,"Наряд выдал: нач.цеха",null,null,null,null,null,null,null,null,null,null,null,null,{"$f":"$N$47","v":"Романов В.В."}]
["мастер",null,null,null,null,null,null,null,null,null,null,null,null,{"$f":"[1]Начальная!$C$8","v":"Хомич Н.Н."},null,null,null,null,null,null,null,null,null,null,null,null,null,null,null,null,null,null,null,null,null,null,null,null,null,null,null,null,null,null,null,null,null,"мастер",null,null,null,null,null,null,null,null,null,null,null,null,{"$f":"$N$48","v":"Хомич Н.Н."}]
["Наряд к исполнению принял: бригадир",null,null,null,null,null,null,null,null,null,null,null,null,null,null,null,null,null,null,null,null,null,null,null,null,null,null,null,null,null,null,null,null,null,null,null,null,null,null,null,null,null,null,null,null,null,null,"Наряд к исполнению принял: бригадир"]
["рабочий",null,null,null,null,null,null,null,null,null,null,null,null,null,null,null,null,null,null,null,null,null,null,null,null,null,null,null,null,null,null,null,null,null,null,null,null,null,null,null,null,null,null,null,null,null,null,"рабочий"]
[{"$f":"$AE$9","v":3},null,null,null,null,null,null,{"$f":"$AH$9","v":"Май, 2015 г."},null,null,null,null,null,null,null,null,null,null,null,null,null,null,null,null,null,null,null,null,null,null,null,null,null,null,null,null,null,null,null,null,null,null,null,null,null,null,null,{"$f":"$AE$9","v":3},null,null,null,null,null,null,{"$f":"$AH$9","v":"Май, 2015 г."}]

{"sheet":"Наряд 2","index":1,"n_rows":0,"n_cols":0,"rows_kept":0,"cut":false,"hidden":false,"merged":[]}